Cogmind - Beta 15 @@@ ROGUE MODE // 2025.08.08 @ 20:08:15 Player: swetpototo Result: Destroyed by H2-F9J(R) with Subdweller Laser Performance ------------- Evolutions (0) 0 Regions Visited (3) 600 Robots Destroyed (9) 45 Value Destroyed (270) 270 Prototype IDs (1) 20 Alien Tech Used (0) 0 Bonus (0) 0 TOTAL SCORE: 935 Bonus ------- None Cogmind --------- Core Integrity 0/250 Matter 300/300 Energy 26/200 System Corruption 0% Temperature Cool (11) Movement Treading (160) Location -10/Subcaves Parts ------- > --- POWER (1) -------- Subdweller Power Source > --- PROPULSION (2) --- Light Treads Light Treads > --- UTILITY (2) ------ Small Storage Unit Makeshift Light Armor Plating > --- WEAPON (2) ------- Powered Cannon > --- INVENTORY (8) ---- Subdweller Monowheel Disposable Heat Sink Cobbler Unit Barrage Gun Battle Cannon Subdweller Shrapnel Launcher Flamer Peak State ------------ > --- POWER ------------ Subdweller Power Source Subdweller Power Source > --- PROPULSION ------- Light Treads Light Treads > --- UTILITY ---------- Small Storage Unit Makeshift Light Armor Plating > --- WEAPON ----------- Powered Cannon > --- INVENTORY -------- Wheel Subdweller Monowheel Disposable Heat Sink Disposable Heat Sink Subdweller Optics Subdweller Machine Gun Battle Cannon Flamer [Rating: 26] Favorites ----------- Power Subdweller Power Source Engine Subdweller Power Source Propulsion Light Treads Treads Light Treads Leg Aluminum Leg Utility Small Storage Unit Device Disposable Heat Sink Storage Small Storage Unit Protection Makeshift Light Armor Plating Weapon Powered Cannon Energy Gun Small Laser Energy Cannon Powered Cannon Build | -11 -10 -10 -10 ------- Run | Yrd Mat Min Sub Slots Evolved . | . . . . Power . | . . . . Propulsion . | . . . . Utility . | . . . . Weapon . | . . . . Parts Attached 8 | . . . 8 Power 3 | . . . 3 Engine 3 | . . . 3 Core . | . . . . Reactor . | . . . . Propulsion 2 | . . . 2 Treads 2 | . . . 2 Leg . | . . . . Wheel . | . . . . Hover . | . . . . Flight . | . . . . Utility 2 | . . . 2 Device 1 | . . . 1 Storage . | . . . . Processor . | . . . . Hackware . | . . . . Protection 1 | . . . 1 Artifact . | . . . . Weapon 1 | . . . 1 Energy Gun . | . . . . Energy Cannon 1 | . . . 1 Ballistic Gun . | . . . . Ballistic Cannon . | . . . . Launcher . | . . . . Special Weapon . | . . . . Impact Weapon . | . . . . Slashing Weapon . | . . . . Piercing Weapon . | . . . . Special Melee Weapon . | . . . . Unidentified Prototypes 1 | . . . 1 Parts Lost 4 | . . . 4 Power 2 | . . . 2 Propulsion 1 | . . . 1 Utility . | . . . . Weapon 1 | . . . 1 Highest Loss Streak 2 | . . . 2 To Critical Strikes . | . . . . Average Backups 6 | . 6 6 6 Power . | . 1 1 . Propulsion 2 | . 4 4 2 Utility . | . . . 1 Weapon 2 | . 1 1 2 Tool/Special . | . . . . Unused Backups 14 | . . . 14 Power . | . . . . Propulsion 5 | . . . 5 Utility 3 | . . . 3 Weapon 6 | . . . 6 Tool/Special . | . . . . Average Slot Usage (%) 82 | . 85 85 81 Engine 17 | . 14 14 18 Treads 14 | . . . 17 Leg 11 | . 28 28 7 Device 4 | . . . 5 Storage 12 | . 14 14 12 Protection 4 | . . . 5 Energy Gun 6 | . 28 28 2 Energy Cannon 9 | . . . 11 Peak Build Rating 26 | . 6 6 26 Average Rating 19 | . 6 6 21 On Entrance 6 | 6 6 6 6 Naked Turns . | . . . . Heaviest Build 28 | 11 11 11 28 Greatest Support 40 | 20 20 20 40 Greatest Overweight (x) . | . . . . Average Overweight (x) . | . . . . Largest Inventory Capacity 8 | . 8 8 8 Average Capacity 8 | . 8 8 8 Most Carried 8 | . 6 6 8 Average Carried 7 | . 6 6 7 Final Capacity 8 | 8 8 8 8 Final Carried 8 | 6 6 6 8 Class Distribution -------------------- 100% | Mutant Dominant Class ---------------- Mutant | -10/Materials Mutant | -10/Mines Mutant | -10/Subcaves Resources | -11 -10 -10 -10 ----------- Run | Yrd Mat Min Sub Matter Collected 270 | 200 . . 70 Remotely . | . . . . Salvage Created 279 | . . . 279 Parts 18 | . . . 18 Haulers Intercepted . | . . . . Recyclers Shooed . | . . . . Parts Field Recycled . | . . . . Retrieved Matter . | . . . . Parts Self-Destructed 13 | . . . 13 Prevented . | . . . . Kills | -11 -10 -10 -10 ------- Run | Yrd Mat Min Sub Combat Hostiles Destroyed 9 | . . . 9 Guns 1 | . . . 1 Cannons 8 | . . . 8 Classes Destroyed 2 | . . . 2 Swarmer 3 | . . . 3 Subdweller 6 | . . . 6 Best Kill Streak 2 | . . . 2 Combat Bots Only 2 | . . . 2 Max Kills in Single Turn 1 | . . . 1 Gunslinging . | . . . . Exploded . | . . . . Melee . | . . . . Uniques/NPCs Destroyed . | . . . . Combat | -11 -10 -10 -10 -------- Run | Yrd Mat Min Sub Hostile Shots Fired 81 | . . . 81 Missed 22 | . . . 22 Hits 59 | . . . 59 Projectile 59 | . . . 59 Critical Strikes 4 | . . . 4 Damage Taken 964 | . . . 964 Core 261 | . . . 261 Absorbed by Shields . | . . . . Core Remaining (%) 100 | 100 . . . Volleys Fired 42 | . 1 . 41 Largest 2 | . 1 . 2 Hottest 90 | . 50 . 90 Shots Fired 49 | . 1 . 48 Gun 18 | . 1 . 17 Cannon 31 | . . . 31 Launcher . | . . . . Special . | . . . . Kinetic . | . . . . Thermal 49 | . 1 . 48 Explosive . | . . . . Electromagnetic . | . . . . Robot Hit Streak 11 | . . . 11 Robot Miss Streak 2 | . 1 . 2 Penetration Max . | . . . . Secondary Targets . | . . . . Shots Hit Robots 35 | . . . 35 Core Hits 11 | . . . 11 Critical Kills . | . . . . Critical Parts Destroyed . | . . . . Critical Strikes 1 | . . . 1 Burn 1 | . . . 1 Melee Attacks . | . . . . Impact . | . . . . Slashing . | . . . . Piercing . | . . . . Sneak Attacks . | . . . . Combat Hostiles . | . . . . Follow-up Attacks . | . . . . Damage Inflicted 1184 | . . 7 1177 Guns 165 | . . . 165 Cannons 1007 | . . . 1007 Explosions . | . . . . Melee . | . . . . Ramming 12 | . . 7 5 Kinetic . | . . . . Thermal 1172 | . . . 1172 Explosive . | . . . . Electromagnetic . | . . . . Impact . | . . . . Slashing . | . . . . Piercing . | . . . . Highest Corruption . | . . . . Average Corruption . | . . . . Corruption Purged . | . . . . Corruption Blocked . | . . . . Overload Shots . | . . . . Overflow Damage 20 | . . . 20 Projectiles 20 | . . . 20 Explosions . | . . . . Melee . | . . . . Knockbacks . | . . . . Impact . | . . . . Kinetic . | . . . . Secondary . | . . . . Self-Inflicted Damage . | . . . . Shots . | . . . . Rammed 4 | . . . 4 Targets Rammed 6 | . . 1 5 Kicked 2 | . . 1 1 Crushed . | . . . . Highest Temperature 16 | . 10 . 16 Average Temperature 7 | . 7 . 7 Received Heat Transfer 195 | . . . 195 Siege Activations . | . . . . Martial Activations . | . . . . Shielding Activations . | . . . . Robots Disrupted . | . . . . Combat Hostiles . | . . . . Robots Corrupted . | . . . . Combat Hostiles . | . . . . Parts Fried . | . . . . Impact Corruptions . | . . . . Robots Melted . | . . . . Combat Hostiles . | . . . . Parts Melted 1 | . . . 1 Heat Transferred 496 | . . . 496 Parts Sabotaged . | . . . . Parts Stolen . | . . . . Parts Stripped . | . . . . Power Chain Reactions . | . . . . Alert | -11 -10 -10 -10 ------- Run | Yrd Mat Min Sub Maximum Alert Level . | . . . . Low Security (%) 100 | . 100 100 . Level 1 . | . . . . Level 2 . | . . . . Level 3 . | . . . . Level 4 . | . . . . Level 5 . | . . . . High Security . | . . . . Max Security . | . . . . Peak Influence . | . . . . Initial . | . . . . Average . | . . . . Influence Increases 75 | . . . 75 Destroy 0b10 Robot/C 60 | . . . 60 Lose Combat Pursuer 15 | . . . 15 Influence Decreases 58 | . . . 58 Time Decay 58 | . . . 58 Squads Dispatched . | . . . . Investigation . | . . . . Extermination . | . . . . Reinforcement . | . . . . Assault . | . . . . Garrison . | . . . . Intercept . | . . . . Searches Triggered . | . . . . Construction Impeded . | . . . . Haulers Reinforced . | . . . . Active Scanning Responses . | . . . . Cargo Convoy Interrupts . | . . . . Stealth | -11 -10 -10 -10 --------- Run | Yrd Mat Min Sub Distress Signals 1 | . 1 . . Communications Jammed . | . . . . Distress Signals . | . . . . Times Spotted 13 | . . . 13 Peak Tracking Total 3 | . 3 . 3 Tactical Retreats 1 | . . . 1 Traps | -11 -10 -10 -10 ------- Run | Yrd Mat Min Sub Traps Triggered . | . . . . Indirectly . | . . . . Trap Hack Attempts . | . . . . Triggered . | . . . . Disarmed . | . . . . Reprogrammed . | . . . . Reused . | . . . . Traps Extracted . | . . . . Installed . | . . . . Triggered . | . . . . Machines | -11 -10 -10 -10 ---------- Run | Yrd Mat Min Sub Machines Disabled . | . . . . Max in Single Turn . | . . . . Machines Repaired . | . . . . Machines Dismantled . | . . . . Machines Sabotaged . | . . . . Overloaded Fab Kills . | . . . . Hacking | -11 -10 -10 -10 --------- Run | Yrd Mat Min Sub Machines Accessed . | . . . . Terminals . | . . . . Fabricators . | . . . . Repair Stations . | . . . . Recycling Units . | . . . . Scanalyzers . | . . . . Garrison Access . | . . . . Total Hacks . | . . . . Successful . | . . . . Failed . | . . . . Catastrophic . | . . . . Database Lockouts . | . . . . Manual . | . . . . Terminals . | . . . . Fabricators . | . . . . Repair Stations . | . . . . Recycling Units . | . . . . Scanalyzers . | . . . . Garrison Access . | . . . . Terminal Hacks . | . . . . Fabricator Hacks . | . . . . Repair Station Hacks . | . . . . Recycling Unit Hacks . | . . . . Scanalyzer . | . . . . Garrison Access Hacks . | . . . . Unauthorized Hacks . | . . . . Terminals . | . . . . Fabricators . | . . . . Repair Stations . | . . . . Recycling Units . | . . . . Scanalyzers . | . . . . Garrison Access . | . . . . Data Cores Recovered . | . . . . Used . | . . . . Hacking Detections . | . . . . Full Trace Events . | . . . . Feedback Events . | . . . . Feedback Blocked . | . . . . Robot Schematics Acquired . | . . . . Robots Built . | . . . . Authchips . | . . . . Time . | . . . . Total Robot Build Rating . | . . . . Part Schematics Acquired . | . . . . Parts Built . | . . . . Authchips . | . . . . Time . | . . . . Total Part Build Rating . | . . . . Parts Repaired . | . . . . Time . | . . . . Parts Recycled . | . . . . Recycled Matter . | . . . . Retrieved Matter . | . . . . Retrieved Components . | . . . . Parts Scanalyzed . | . . . . Part Schematics Acquired . | . . . . Parts Damaged . | . . . . Bothacking | -11 -10 -10 -10 ------------ Run | Yrd Mat Min Sub Used RIF Installer . | . . . . Robots Hacked . | . . . . Non-combat . | . . . . Combat . | . . . . Robot Hacks Applied . | . . . . Relay Couplers Released . | . . . . Fabnet Peak Effective % . | . . . . Robots Rewired . | . . . . Allies Hacked . | . . . . Hacks Repelled . | . . . . Allies | -11 -10 -10 -10 -------- Run | Yrd Mat Min Sub Total Allies . | . . . . Largest Group . | . . . . Highest-Rated Group . | . . . . Highest-Rated Ally . | . . . . Total Orders . | . . . . Ally Attacks . | . . . . Total Damage . | . . . . Kills . | . . . . Allies Corrupted . | . . . . Allies Melted . | . . . . Intel | -11 -10 -10 -10 ------- Run | Yrd Mat Min Sub Active Infowar (turns) . | . . . . Robot Analysis Total . | . . . . Derelict Logs Recovered 1 | . . . 1 Drone Launches . | . . . . Drone Recoveries . | . . . . Exploration | -11 -10 -10 -10 ------------- Run | Yrd Mat Min Sub Turns Passed 1241 | . 56 157 1028 Spaces Moved 673 | 1 26 66 580 Core . | . . . . Treads 439 | . . . 439 Legs 234 | 1 26 66 141 Wheels . | . . . . Hover . | . . . . Flight . | . . . . Fastest Speed 120 | 120 120 120 120 Average Speed 146 | 120 120 120 150 Slowest Speed 160 | 120 120 120 160 Overloaded Moves . | . . . . Propulsion Burnouts . | . . . . Robots Hopped . | . . . . Potential Cave-ins . | . . . . Cave-ins Triggered . | . . . . Exploration Rate (%) 13 | 2 10 15 25 Regions Visited 3 Branch Regions 2 Pre-discovered Areas 1 | . . . 1 Known Exits Taken . | . . . . Unknown Exits Taken 3 | 1 1 1 . Scrap Searched 3 | . . . 3 Spaces Dug . | . . . . Terrain Destroyed 5 | . . . 5 Melee . | . . . . Projectile 5 | . . . 5 AOE . | . . . . Terrain Rammed . | . . . . Walls Destroyed . | . . . . Machines Disabled . | . . . . Actions | -11 -10 -10 -10 --------- Run | Yrd Mat Min Sub Total 891 | . 50 143 698 Wait 139 | . 24 77 38 Move 670 | . 25 65 580 Hop . | . . . . Pick Up 13 | . . . 13 Fast Attach 4 | . . . 4 Attach 2 | . . . 2 Detach 1 | . . . 1 Swap 2 | . . . 2 Drop 12 | . . . 12 Fire 42 | . 1 . 41 Melee . | . . . . Ram . | . . . . Kick 2 | . . 1 1 Crush 4 | . . . 4 Escape Stasis . | . . . . Rewire . | . . . . Trap . | . . . . Miscellaneous . | . . . . Route ------- -11/Scrapyard -10/Materials -10/Mines -10/Subcaves History --------- Turn | Location | Event 1 | -11/Scrapyard | Discovered new exit (range 0) 1 | -11/Scrapyard | Entered Materials 39 | -10/Materials | Discovered new exit (range 15) 57 | -10/Materials | Entered Mines 199 | -10/Mines | Discovered new exit (range 4) 214 | -10/Mines | Entered Subcaves 244 | -10/Subcaves | A Subdweller sparked back to life 295 | -10/Subcaves | Core integrity fell below 50% 299 | -10/Subcaves | Found Prototype Energy Cannon 299 | -10/Subcaves | Identified Powered Cannon 300 | -10/Subcaves | Attached Powered Cannon, gained temporary slot: Power 327 | -10/Subcaves | Build established: Mutant 621 | -10/Subcaves | Core integrity fell below 20% 667 | -10/Subcaves | Shifting Twisted Machinery released Sub. Power Source 688 | -10/Subcaves | Shifting Twisted Machinery released Battle Cannon 1143 | -10/Subcaves | Learned location of Storage (-7) 1242 | -10/Subcaves | Destroyed by H2-F9J(R) with Subdweller Laser Last Messages --------------- 00782_ Dropped Disposable Heat Sink. 00782_ Disposable Heat Sink crushed and broken. 00782_ Acquired Sub. Shrapnel Launcher. 00795_ Subatomizers dissect the Sml. Laser. 01108_ Sub. Power Source shoots sparks and powers down. 01141_ Dropped Sub. Machine Gun. 01142_ Acquired Barrage Gun. 01143_ Acquired derelict log, extracted data. World map updated: -7/Storage. 01173_ Subatomizers dissect the Cobbler Unit. 01181_ Dropped Sub. Optics. 01182_ Dropped Wheel. 01182_ Acquired Cobbler Unit. 01188_ S-10 Pest destroyed. 01194_ Lgt. Assault Rifle fries itself beyond repair. 01201_ Dropped Broken Sub. Power Source. 01202_ Temporary Power slot lost. 01238_ JH-WJZ(R) destroyed. Map ----- +----------------------------------------------------+ | ?????????????????????????????????????????????? | | ??####????????????????????????????????????????? | | ?????# #?#######????????????????????????????????? | | ?????# #?# ##???????????????????????????????? | | ###### ##?# #?###?##????????????????????????? | | &"" # ### ##? ## ##???????????????????????? | | " " ##?? #?????? ????????????????? | | # %#???# ##??? ????????????????? | | & "## #???# ## ????????????????? | | # ## ##?### ????????????????? | | ###### #### ???????????????????? | | #???# ## #??????????????????????? | | #??## #????????????????????????? | | ##?# #???????????? ??????????????? | | #### % ## #####??????? #?????????????? | | ## %### ##????? # ????????????? | | "# #?### #????# ?????????????? | | ## #?###[ #####?# ??????????????? | | # ### ## ##?? ## ???????????????? | | ##### #?# ## ## ##? #????????????????? | | ????###?########## ## ## ###??????????????? | | ???????????????????## #??????????????? | | ??????????????????## #???????????????? | | ?????????????????##% #???????????????? | | ?????????????????# ####???????????????? | | ????????????????## @ ##??????????????????? | | ????????????????# % & ##???????????????????? | | ????????????????# R%& ####????????????????????? | | ????????????????##= !#####???????????????????????? | | ?????????????????#=%##???????????????????????????? | | ?????????????????#*!*#####???????????????????????? | | ?????????????????#"%## ##??????????????????????? | | ?????????????????# % #??????????????????????? | | ????????????????# % #????????????????? | | ????????????????# #????????????????? | | ????????????????## ## #????????????????? | | ?????????????????# #?? ??????????????? | | ######??????????? ??? ??????????????? | | #?????????? ???## "??????????????? | | ##???????? ??????#??????????????? | | ###????? ## #????????????????????? | | ##???## ## ##?####????????????????????? | | ### #????###?# #??????????????????????????? | | "##?## #???????? ??????????????????????????? | | "#???##" #???????? ??????????????????????????? | | ###??#"##????????# ??????????????????????????? | | """##?###?????????# ??????????????????????????? | | " ""##?????????????## #??????????????????????????? | | """" ##??????????????????????????????????????????? | | " ""#??????????????????????????????????????????? | +----------------------------------------------------+ Best States ------------- Heat Dissipation 25 Coolant Potential 50 Energy Generation 25 Energy Capacity 300 Matter Stores 300 Matter Capacity 300 Sight Range 16 Terrain Scan Density 10 Armor Coverage 100 Evasion (%) 55 Recoil Reduction 2 Item Schematics ----------------- None Robot Schematics ------------------ None Fabricated ------------ Nothing Repaired ---------- Nothing Alien Tech Used ----------------- None Achievements -------------- None Challenges ------------ None Game ------ Seed SignalSmartbombProjector Manual? 0 Play Time 00:13:32 Cumulative 111.9 hours Start 2025.08.08 @ 19:35:54 End 2025.08.08 @ 20:08:15 Sessions 1 Manual Loads 0 Difficulty Rogue Special Mode None Game No. 144 Rogue 57 Adventurer 59 Explorer 28 Win Type - Total 15 Types 13/0/2/0/0/0/0/0/0/0 Lore% 35 Gallery% 59 Achievement% 49 Wizard Run 0 Options --------- Layout 2 ASCII 0 Keyboard 1 Movement Arrows Keybinds 1 Fullscreen 2 Font 32/Smallcaps Map View 50x44 Zoom Use 0% Tactical HUD 1 Map Filters NONE Filters NONE Steam 1 RUN: d898344a-6e06-4b14-a8db-b05df7a07796